[Event "Early-Titled-Tuesday-Blitz-January-30-2024"]
[Site "Chess.com"]
[Date "2024.01.30"]
[Round "5"]
[White "bancsoo"]
[Black "SaiAgni_98"]
[Result "1-0"]
[WhiteElo "2807"]
[BlackElo "2578"]
[TimeControl "180+1"]
[EndTime "8:58:56 PST"]
[Termination "bancsoo won on time"]

1. Nf3 {[%clk 0:03:00.9]} 1... d5 {[%clk 0:02:59]} 2. g3 {[%clk 0:03:01.4]} 2...
Nf6 {[%clk 0:02:58.6]} 3. Bg2 {[%clk 0:03:01.9]} 3... Bf5 {[%clk 0:02:58.7]} 4.
O-O {[%clk 0:03:01.4]} 4... e6 {[%clk 0:02:57.8]} 5. c4 {[%clk 0:03:01.5]} 5...
c6 {[%clk 0:02:54.2]} 6. Qb3 {[%clk 0:03:01.3]} 6... Qb6 {[%clk 0:02:54]} 7. d3
{[%clk 0:03:02]} 7... Nbd7 {[%clk 0:02:49.4]} 8. cxd5 {[%clk 0:03:02]} 8... exd5
{[%clk 0:02:47.6]} 9. Qc2 {[%clk 0:03:01.6]} 9... Be7 {[%clk 0:02:44.6]} 10. Nc3
{[%clk 0:03:01.5]} 10... O-O {[%clk 0:02:37.3]} 11. e4 {[%clk 0:03:01.7]} 11...
dxe4 {[%clk 0:02:36.2]} 12. dxe4 {[%clk 0:03:01.8]} 12... Bg4 {[%clk 0:02:31.5]}
13. Nh4 {[%clk 0:02:55.5]} 13... Ne8 {[%clk 0:02:15.1]} 14. h3 {[%clk
0:02:54.7]} 14... Be6 {[%clk 0:02:08.6]} 15. Nf3 {[%clk 0:02:41.6]} 15... Nd6
{[%clk 0:01:56.6]} 16. Be3 {[%clk 0:02:35.8]} 16... Qa5 {[%clk 0:01:49.2]} 17.
b3 {[%clk 0:02:28.9]} 17... Bf6 {[%clk 0:01:45.5]} 18. Rac1 {[%clk 0:02:27.9]}
18... Rfd8 {[%clk 0:01:44.5]} 19. Nd4 {[%clk 0:02:19.3]} 19... Nb5 {[%clk
0:01:10.4]} 20. Ncxb5 {[%clk 0:02:09]} 20... cxb5 {[%clk 0:01:10.5]} 21. Nxe6
{[%clk 0:02:09.2]} 21... fxe6 {[%clk 0:01:10.9]} 22. Rfd1 {[%clk 0:01:54.5]}
22... Nf8 {[%clk 0:01:04.5]} 23. Qe2 {[%clk 0:01:46.8]} 23... Rxd1+ {[%clk
0:01:01.2]} 24. Rxd1 {[%clk 0:01:45.7]} 24... a6 {[%clk 0:00:55]} 25. Bc5 {[%clk
0:01:37.1]} 25... e5 {[%clk 0:00:30.1]} 26. Rd6 {[%clk 0:00:41.4]} 26... Qc3
{[%clk 0:00:19]} 27. Qe3 {[%clk 0:00:26.3]} 27... Qxe3 {[%clk 0:00:12.7]} 28.
Bxe3 {[%clk 0:00:26.6]} 28... Rd8 {[%clk 0:00:12.8]} 29. Rd5 {[%clk 0:00:19]}
29... Kf7 {[%clk 0:00:10]} 30. f4 {[%clk 0:00:17.5]} 30... Rxd5 {[%clk
0:00:08.9]} 31. exd5 {[%clk 0:00:17.9]} 31... exf4 {[%clk 0:00:09.2]} 32. Bxf4
{[%clk 0:00:15.9]} 32... Nd7 {[%clk 0:00:09.6]} 33. d6 {[%clk 0:00:15.8]} 33...
b6 {[%clk 0:00:09.1]} 34. Bb7 {[%clk 0:00:15.7]} 34... a5 {[%clk 0:00:09.5]} 35.
Bc6 {[%clk 0:00:16.1]} 35... Ke6 {[%clk 0:00:09.5]} 36. Bxb5 {[%clk 0:00:16]}
36... Nc5 {[%clk 0:00:09.2]} 37. Kg2 {[%clk 0:00:14.4]} 37... g5 {[%clk
0:00:08.3]} 38. Bd2 {[%clk 0:00:13.8]} 38... Kxd6 {[%clk 0:00:05.7]} 39. Kf3
{[%clk 0:00:14]} 39... h6 {[%clk 0:00:05.2]} 40. Kg4 {[%clk 0:00:13.1]} 40...
Be5 {[%clk 0:00:05.7]} 41. Be1 {[%clk 0:00:12.2]} 41... Ne4 {[%clk 0:00:06]} 42.
Bd3 {[%clk 0:00:10.5]} 42... Nf6+ {[%clk 0:00:04.1]} 43. Kf5 {[%clk 0:00:10.6]}
43... Nd5 {[%clk 0:00:02.7]} 44. Kg6 {[%clk 0:00:09.2]} 44... Ne7+ {[%clk
0:00:03.6]} 45. Kxh6 {[%clk 0:00:08.9]} 45... Bf6 {[%clk 0:00:04.1]} 46. Bd2
{[%clk 0:00:07.8]} 46... Be5 {[%clk 0:00:02.6]} 47. g4 {[%clk 0:00:07.6]} 47...
Bf4 {[%clk 0:00:02]} 48. Bxf4+ {[%clk 0:00:08.1]} 48... gxf4 {[%clk 0:00:02.9]}
49. g5 {[%clk 0:00:08.8]} 49... f3 {[%clk 0:00:03.2]} 50. g6 {[%clk 0:00:09.3]}
50... f2 {[%clk 0:00:02.9]} 51. g7 {[%clk 0:00:09.6]} 51... Nf5+ {[%clk
0:00:03.6]} 52. Kh7 {[%clk 0:00:08.8]} 52... Nxg7 {[%clk 0:00:02.5]} 53. Kxg7
{[%clk 0:00:09.2]} 53... Ke5 {[%clk 0:00:03.2]} 54. h4 {[%clk 0:00:07.1]} 54...
Kd4 {[%clk 0:00:04]} 55. Bf1 {[%clk 0:00:06.9]} 55... Kc3 {[%clk 0:00:03.1]} 56.
h5 {[%clk 0:00:07.2]} 56... Kb2 {[%clk 0:00:03]} 57. h6 {[%clk 0:00:07.7]} 57...
Kxa2 {[%clk 0:00:03.9]} 58. h7 {[%clk 0:00:08.3]} 58... a4 {[%clk 0:00:04.8]}
59. bxa4 {[%clk 0:00:08.1]} 1-0

[Event "Early-Titled-Tuesday-Blitz-January-30-2024"]
[Site "Chess.com"]
[Date "2024.01.30"]
[Round "5"]
[White "SuanFernandes"]
[Black "RobertJFischer71"]
[Result "0-1"]
[WhiteElo "2324"]
[BlackElo "2554"]
[TimeControl "180+1"]
[EndTime "8:59:01 PST"]
[Termination "RobertJFischer71 won by checkmate"]

1. d4 {[%clk 0:03:00.9]} 1... d6 {[%clk 0:02:59]} 2. Nf3 {[%clk 0:03:00.1]} 2...
Nf6 {[%clk 0:02:58.8]} 3. c4 {[%clk 0:03:00.7]} 3... Nbd7 {[%clk 0:02:57.8]} 4.
Nc3 {[%clk 0:03:01.4]} 4... e5 {[%clk 0:02:58.2]} 5. e4 {[%clk 0:03:02.1]} 5...
exd4 {[%clk 0:02:57.2]} 6. Nxd4 {[%clk 0:03:03]} 6... g6 {[%clk 0:02:56.8]} 7.
Be2 {[%clk 0:03:01.5]} 7... Bg7 {[%clk 0:02:57.4]} 8. O-O {[%clk 0:03:01.7]}
8... O-O {[%clk 0:02:58.2]} 9. Be3 {[%clk 0:03:00]} 9... Re8 {[%clk 0:02:58.4]}
10. f3 {[%clk 0:03:00]} 10... c6 {[%clk 0:02:58.3]} 11. Nc2 {[%clk 0:02:57.8]}
11... Ne5 {[%clk 0:02:44.7]} 12. Qd2 {[%clk 0:02:52.5]} 12... Be6 {[%clk
0:02:37.3]} 13. b3 {[%clk 0:02:51.4]} 13... d5 {[%clk 0:02:35.6]} 14. cxd5
{[%clk 0:02:15]} 14... cxd5 {[%clk 0:02:35.6]} 15. f4 {[%clk 0:01:48.5]} 15...
Neg4 {[%clk 0:02:35.4]} 16. e5 {[%clk 0:01:48.6]} 16... Nxe3 {[%clk 0:02:32]}
17. Qxe3 {[%clk 0:01:48.1]} 17... Ne4 {[%clk 0:02:29.2]} 18. Nxe4 {[%clk
0:01:42.7]} 18... dxe4 {[%clk 0:02:30.1]} 19. Rad1 {[%clk 0:01:33.6]} 19... Qa5
{[%clk 0:02:29.8]} 20. Nd4 {[%clk 0:01:23.5]} 20... Bd5 {[%clk 0:02:03.7]} 21.
Nb5 {[%clk 0:01:17.3]} 21... Red8 {[%clk 0:02:01.1]} 22. Nd6 {[%clk 0:01:04.4]}
22... Bc6 {[%clk 0:02:01.1]} 23. Bc4 {[%clk 0:01:02.3]} 23... Rf8 {[%clk
0:01:57.9]} 24. a4 {[%clk 0:00:59.1]} 24... Bh6 {[%clk 0:01:47.7]} 25. Nxe4
{[%clk 0:00:52.8]} 25... Qxe5 {[%clk 0:01:43.7]} 26. fxe5 {[%clk 0:00:15.7]}
26... Bxe3+ {[%clk 0:01:43]} 27. Nf2 {[%clk 0:00:16.4]} 27... Rfd8 {[%clk
0:01:38.4]} 28. Kh1 {[%clk 0:00:16.6]} 28... Bxf2 {[%clk 0:01:29.4]} 29. Rxd8+
{[%clk 0:00:14.3]} 29... Rxd8 {[%clk 0:01:30.3]} 30. Rxf2 {[%clk 0:00:14.7]}
30... Rd1+ {[%clk 0:01:31.1]} 31. Rf1 {[%clk 0:00:14.7]} 31... Rxf1+ {[%clk
0:01:31.8]} 32. Bxf1 {[%clk 0:00:15.2]} 32... a5 {[%clk 0:01:31.5]} 33. Bc4
{[%clk 0:00:15.5]} 33... Kf8 {[%clk 0:01:31.4]} 34. Kg1 {[%clk 0:00:14]} 34...
Ke7 {[%clk 0:01:32]} 35. Kf2 {[%clk 0:00:13.6]} 35... f6 {[%clk 0:00:54.8]} 36.
exf6+ {[%clk 0:00:12]} 36... Kxf6 {[%clk 0:00:55.7]} 37. g3 {[%clk 0:00:10.1]}
37... Ke5 {[%clk 0:00:53.9]} 38. Ke3 {[%clk 0:00:10.5]} 38... g5 {[%clk
0:00:53.4]} 39. Bd3 {[%clk 0:00:08.5]} 39... h6 {[%clk 0:00:53.1]} 40. Bc4
{[%clk 0:00:07.2]} 40... b6 {[%clk 0:00:53]} 41. Bg8 {[%clk 0:00:07]} 41... Be8
{[%clk 0:00:47.9]} 42. h4 {[%clk 0:00:06.4]} 42... Bg6 {[%clk 0:00:45.6]} 43.
hxg5 {[%clk 0:00:05.5]} 43... hxg5 {[%clk 0:00:46.5]} 44. Bc4 {[%clk 0:00:05.8]}
44... Be4 {[%clk 0:00:44.3]} 45. Bg8 {[%clk 0:00:05.8]} 45... Bc6 {[%clk
0:00:43.5]} 46. Bc4 {[%clk 0:00:06]} 46... Bb7 {[%clk 0:00:22.3]} 47. Bd3 {[%clk
0:00:05.9]} 47... Bd5 {[%clk 0:00:22.1]} 48. Bc4 {[%clk 0:00:04]} 48... Bxc4
{[%clk 0:00:16.1]} 49. bxc4 {[%clk 0:00:04.9]} 49... Kd6 {[%clk 0:00:16.8]} 50.
Kd4 {[%clk 0:00:05.1]} 50... Kc6 {[%clk 0:00:17.3]} 51. Kd3 {[%clk 0:00:04.7]}
51... Kc5 {[%clk 0:00:17.7]} 52. Kc3 {[%clk 0:00:05.3]} 52... g4 {[%clk
0:00:17.1]} 53. Kb3 {[%clk 0:00:04.8]} 53... Kd4 {[%clk 0:00:17.7]} 54. Kc2
{[%clk 0:00:04.1]} 54... Kxc4 {[%clk 0:00:18.2]} 55. Kd2 {[%clk 0:00:05]} 55...
b5 {[%clk 0:00:18.4]} 56. Ke3 {[%clk 0:00:05.9]} 56... bxa4 {[%clk 0:00:18.6]}
57. Kf4 {[%clk 0:00:06.8]} 57... a3 {[%clk 0:00:19.3]} 58. Kxg4 {[%clk
0:00:07.7]} 58... a2 {[%clk 0:00:20]} 59. Kf4 {[%clk 0:00:08.6]} 59... a1=Q
{[%clk 0:00:20.9]} 60. g4 {[%clk 0:00:09.5]} 60... Qf6+ {[%clk 0:00:20.8]} 61.
Kg3 {[%clk 0:00:09]} 61... Qg5 {[%clk 0:00:21.7]} 62. Kf3 {[%clk 0:00:09.1]}
62... a4 {[%clk 0:00:22.6]} 63. Ke4 {[%clk 0:00:09.9]} 63... a3 {[%clk
0:00:23.5]} 64. Kf3 {[%clk 0:00:09]} 64... a2 {[%clk 0:00:24.4]} 65. Ke2 {[%clk
0:00:09.9]} 65... a1=Q {[%clk 0:00:24.1]} 66. Kf2 {[%clk 0:00:09.7]} 66... Qd4+
{[%clk 0:00:22.7]} 67. Kf3 {[%clk 0:00:10]} 67... Qge3+ {[%clk 0:00:21.1]} 68.
Kg2 {[%clk 0:00:09.9]} 68... Qxg4+ {[%clk 0:00:22]} 69. Kf1 {[%clk 0:00:10.1]}
69... Qeg1# {[%clk 0:00:22.9]} 0-1

[Event "Early-Titled-Tuesday-Blitz-January-30-2024"]
[Site "Chess.com"]
[Date "2024.01.30"]
[Round "5"]
[White "Shield12"]
[Black "Orujov2008"]
[Result "1-0"]
[WhiteElo "3003"]
[BlackElo "2722"]
[TimeControl "180+1"]
[EndTime "8:59:02 PST"]
[Termination "Shield12 won by resignation"]

1. d4 {[%clk 0:03:00.9]} 1... d5 {[%clk 0:03:00]} 2. c4 {[%clk 0:03:00.4]} 2...
c6 {[%clk 0:03:00.7]} 3. Nf3 {[%clk 0:02:59.7]} 3... Nf6 {[%clk 0:02:58.3]} 4.
cxd5 {[%clk 0:02:59.3]} 4... cxd5 {[%clk 0:02:57.7]} 5. Nc3 {[%clk 0:03:00.2]}
5... Nc6 {[%clk 0:02:57.8]} 6. Bf4 {[%clk 0:03:00.8]} 6... Bf5 {[%clk
0:02:57.9]} 7. e3 {[%clk 0:03:00.3]} 7... e6 {[%clk 0:02:55.6]} 8. Ne5 {[%clk
0:03:00.7]} 8... Nd7 {[%clk 0:02:47]} 9. Nxc6 {[%clk 0:02:58.7]} 9... bxc6
{[%clk 0:02:47.9]} 10. a3 {[%clk 0:02:55.8]} 10... g5 {[%clk 0:02:37.1]} 11. Bg3
{[%clk 0:02:54.4]} 11... h5 {[%clk 0:02:37.5]} 12. h4 {[%clk 0:02:54.3]} 12...
Bg7 {[%clk 0:02:30.8]} 13. Be2 {[%clk 0:02:46.4]} 13... e5 {[%clk 0:02:23.8]}
14. dxe5 {[%clk 0:02:33.1]} 14... Nxe5 {[%clk 0:02:24.7]} 15. Rc1 {[%clk
0:02:30.1]} 15... O-O {[%clk 0:02:19.5]} 16. hxg5 {[%clk 0:02:28.4]} 16... Re8
{[%clk 0:02:18.3]} 17. Rxh5 {[%clk 0:02:24.1]} 17... d4 {[%clk 0:02:13]} 18. Na4
{[%clk 0:02:21.3]} 18... Bg6 {[%clk 0:01:58.8]} 19. Rh4 {[%clk 0:02:18.5]} 19...
dxe3 {[%clk 0:01:58.7]} 20. Qxd8 {[%clk 0:02:08.4]} 20... Raxd8 {[%clk
0:01:59.6]} 21. fxe3 {[%clk 0:02:04.4]} 21... Nd3+ {[%clk 0:01:43.2]} 22. Bxd3
{[%clk 0:02:03.7]} 22... Rxe3+ {[%clk 0:01:44.1]} 23. Kf2 {[%clk 0:02:00.4]}
23... Rexd3 {[%clk 0:01:34.8]} 24. Bc7 {[%clk 0:01:48.1]} 24... Rd2+ {[%clk
0:01:31.3]} 25. Kg1 {[%clk 0:01:43.7]} 25... Re8 {[%clk 0:01:22.6]} 26. Ba5
{[%clk 0:01:29.9]} 26... Bd4+ {[%clk 0:01:09.3]} 27. Kh1 {[%clk 0:01:19.4]}
27... Rd3 {[%clk 0:01:09.5]} 28. Bc3 {[%clk 0:01:12.7]} 28... Bxc3 {[%clk
0:00:59.2]} 29. Rxc3 {[%clk 0:01:13.6]} 29... Rd2 {[%clk 0:00:59.8]} 30. b4
{[%clk 0:01:07.9]} 30... Ree2 {[%clk 0:00:56.8]} 31. Rg3 {[%clk 0:01:05]} 31...
Be4 {[%clk 0:00:56.3]} 32. Rhg4 {[%clk 0:01:00.8]} 32... Kg7 {[%clk 0:00:48.2]}
33. Kh2 {[%clk 0:00:59.9]} 33... Kg6 {[%clk 0:00:46.9]} 34. Nc3 {[%clk
0:00:59.4]} 34... Bf5 {[%clk 0:00:43]} 35. Nxe2 {[%clk 0:00:50.9]} 35... Bxg4
{[%clk 0:00:43.1]} 36. Rxg4 {[%clk 0:00:43.8]} 36... Rxe2 {[%clk 0:00:42.9]} 37.
Rc4 {[%clk 0:00:43.9]} 37... Kxg5 {[%clk 0:00:41.5]} 38. Rxc6 {[%clk 0:00:42.8]}
38... Re3 {[%clk 0:00:33.6]} 39. Ra6 {[%clk 0:00:42.2]} 39... Re7 {[%clk
0:00:34.2]} 40. Kg3 {[%clk 0:00:41.8]} 40... f5 {[%clk 0:00:33.3]} 41. Kf3
{[%clk 0:00:41.9]} 41... Rc7 {[%clk 0:00:30.5]} 42. Ke3 {[%clk 0:00:31.3]} 42...
f4+ {[%clk 0:00:30.2]} 43. Ke4 {[%clk 0:00:30.2]} 43... Re7+ {[%clk 0:00:26.4]}
44. Kd5 {[%clk 0:00:30]} 44... Kf5 {[%clk 0:00:22.7]} 45. b5 {[%clk 0:00:21.8]}
45... Re5+ {[%clk 0:00:17.9]} 46. Kc4 {[%clk 0:00:21.3]} 46... Re4+ {[%clk
0:00:16.7]} 47. Kc5 {[%clk 0:00:21.7]} 47... Re5+ {[%clk 0:00:11.3]} 48. Kb4
{[%clk 0:00:21.7]} 48... Re7 {[%clk 0:00:09.4]} 49. a4 {[%clk 0:00:21.2]} 49...
Rg7 {[%clk 0:00:09.5]} 50. a5 {[%clk 0:00:20.9]} 50... Rxg2 {[%clk 0:00:09]} 51.
Rxa7 {[%clk 0:00:20.9]} 51... Rb2+ {[%clk 0:00:09.4]} 52. Kc5 {[%clk 0:00:19.8]}
52... Rc2+ {[%clk 0:00:08.6]} 53. Kb6 {[%clk 0:00:19.8]} 53... Ke4 {[%clk
0:00:07.8]} 54. Re7+ {[%clk 0:00:19.3]} 54... Kd5 {[%clk 0:00:07.3]} 55. Rf7
{[%clk 0:00:20.2]} 55... Rc4 {[%clk 0:00:05.8]} 56. a6 {[%clk 0:00:20.2]} 56...
Ke6 {[%clk 0:00:04.5]} 57. Rf8 {[%clk 0:00:20]} 57... Ke7 {[%clk 0:00:04.5]} 58.
a7 {[%clk 0:00:20.4]} 58... Ra4 {[%clk 0:00:02.1]} 59. Rxf4 {[%clk 0:00:19.4]}
59... Rxf4 {[%clk 0:00:02]} 60. a8=Q {[%clk 0:00:19.5]} 1-0

[Event "Early-Titled-Tuesday-Blitz-January-30-2024"]
[Site "Chess.com"]
[Date "2024.01.30"]
[Round "5"]
[White "Zhigalko_Sergei"]
[Black "GaiozNigalidze"]
[Result "0-1"]
[WhiteElo "2945"]
[BlackElo "2718"]
[TimeControl "180+1"]
[EndTime "8:59:07 PST"]
[Termination "GaiozNigalidze won on time"]

1. e4 {[%clk 0:02:53.5]} 1... d6 {[%clk 0:02:59.6]} 2. d4 {[%clk 0:02:44.3]}
2... g6 {[%clk 0:02:59.9]} 3. Nc3 {[%clk 0:02:42.6]} 3... Bg7 {[%clk 0:03:00.3]}
4. Nf3 {[%clk 0:02:42.1]} 4... a6 {[%clk 0:02:57.8]} 5. Be3 {[%clk 0:02:39.3]}
5... e6 {[%clk 0:02:57.5]} 6. Bd3 {[%clk 0:02:36.5]} 6... Ne7 {[%clk 0:02:56.7]}
7. O-O {[%clk 0:02:36.1]} 7... Nd7 {[%clk 0:02:56.6]} 8. Re1 {[%clk 0:02:34.4]}
8... O-O {[%clk 0:02:56.1]} 9. Qd2 {[%clk 0:02:34.3]} 9... e5 {[%clk 0:02:51.4]}
10. Bh6 {[%clk 0:02:28.2]} 10... Nc6 {[%clk 0:02:42.9]} 11. Bxg7 {[%clk
0:02:23.3]} 11... Kxg7 {[%clk 0:02:42.8]} 12. Bf1 {[%clk 0:02:21.3]} 12... h6
{[%clk 0:02:37]} 13. Rad1 {[%clk 0:02:19.9]} 13... exd4 {[%clk 0:02:24.1]} 14.
Nxd4 {[%clk 0:02:19]} 14... Nf6 {[%clk 0:02:24.5]} 15. f3 {[%clk 0:02:11.7]}
15... Bd7 {[%clk 0:02:20.9]} 16. Qf2 {[%clk 0:02:08]} 16... Nxd4 {[%clk
0:02:13.2]} 17. Qxd4 {[%clk 0:02:05.7]} 17... Kh7 {[%clk 0:01:45.3]} 18. Bc4
{[%clk 0:01:51.4]} 18... b5 {[%clk 0:01:31.3]} 19. Bb3 {[%clk 0:01:50.5]} 19...
c5 {[%clk 0:00:55]} 20. Qxd6 {[%clk 0:01:49.1]} 20... c4 {[%clk 0:00:55.3]} 21.
e5 {[%clk 0:01:49.5]} 21... cxb3 {[%clk 0:00:55.4]} 22. axb3 {[%clk 0:01:30.6]}
22... Bf5 {[%clk 0:00:47.5]} 23. Qxf6 {[%clk 0:00:29.4]} 23... Qxf6 {[%clk
0:00:46.4]} 24. exf6 {[%clk 0:00:30.3]} 24... Bxc2 {[%clk 0:00:46.6]} 25. Rd6
{[%clk 0:00:27.4]} 25... Bxb3 {[%clk 0:00:42.3]} 26. Re7 {[%clk 0:00:28]} 26...
b4 {[%clk 0:00:33.1]} 27. Ne4 {[%clk 0:00:27.7]} 27... g5 {[%clk 0:00:27.3]} 28.
Nc5 {[%clk 0:00:27.7]} 28... Bc4 {[%clk 0:00:23.7]} 29. b3 {[%clk 0:00:25.2]}
29... Rac8 {[%clk 0:00:19.6]} 30. Nd7 {[%clk 0:00:22.1]} 30... Bxb3 {[%clk
0:00:18.2]} 31. Nxf8+ {[%clk 0:00:21.6]} 31... Rxf8 {[%clk 0:00:19.1]} 32. Rxa6
{[%clk 0:00:21.2]} 32... Rb8 {[%clk 0:00:16.1]} 33. Raa7 {[%clk 0:00:19.3]}
33... Bd5 {[%clk 0:00:14]} 34. Rad7 {[%clk 0:00:18.7]} 34... Bc4 {[%clk
0:00:13.6]} 35. Rb7 {[%clk 0:00:18.1]} 35... Rxb7 {[%clk 0:00:13.3]} 36. Rxb7
{[%clk 0:00:19]} 36... b3 {[%clk 0:00:13.8]} 37. Rb4 {[%clk 0:00:10.7]} 37...
Be6 {[%clk 0:00:11.5]} 38. Kf2 {[%clk 0:00:08.2]} 38... Kg6 {[%clk 0:00:11.7]}
39. g4 {[%clk 0:00:07.4]} 39... Kxf6 {[%clk 0:00:10.6]} 40. Ke3 {[%clk
0:00:08.1]} 40... Bd5 {[%clk 0:00:09.2]} 41. Rb5 {[%clk 0:00:06.7]} 41... Be6
{[%clk 0:00:08.1]} 42. h3 {[%clk 0:00:05.1]} 42... Kg6 {[%clk 0:00:07.3]} 43. f4
{[%clk 0:00:05.3]} 43... gxf4+ {[%clk 0:00:06.5]} 44. Kxf4 {[%clk 0:00:06.2]}
44... Kf6 {[%clk 0:00:06.4]} 45. h4 {[%clk 0:00:05.9]} 45... Kg6 {[%clk
0:00:06.3]} 46. Rb6 {[%clk 0:00:06.1]} 46... Kf6 {[%clk 0:00:06.2]} 47. Rb7
{[%clk 0:00:06.1]} 47... Kg6 {[%clk 0:00:05.9]} 48. Rb5 {[%clk 0:00:03.7]} 48...
Kf6 {[%clk 0:00:05.6]} 49. h5 {[%clk 0:00:03.8]} 49... Bc4 {[%clk 0:00:05.2]}
50. Rb6+ {[%clk 0:00:04.1]} 50... Be6 {[%clk 0:00:05.5]} 51. Rc6 {[%clk
0:00:04.1]} 51... Kg7 {[%clk 0:00:03.8]} 52. g5 {[%clk 0:00:03.8]} 52... Bd5
{[%clk 0:00:03.2]} 53. Rxh6 {[%clk 0:00:02.6]} 53... Be6 {[%clk 0:00:02.9]} 54.
g6 {[%clk 0:00:01.2]} 54... Kxh6 {[%clk 0:00:01.9]} 55. g7 {[%clk 0:00:01.9]}
55... Kxg7 {[%clk 0:00:01.6]} 56. Kg5 {[%clk 0:00:02.6]} 56... Kh7 {[%clk
0:00:02.5]} 57. h6 {[%clk 0:00:03.5]} 57... b2 {[%clk 0:00:03]} 58. Kf6 {[%clk
0:00:04.4]} 58... b1=Q {[%clk 0:00:03.9]} 59. Ke7 {[%clk 0:00:05.3]} 59... Qg6
{[%clk 0:00:04.4]} 60. Kf8 {[%clk 0:00:06.2]} 60... Qxh6+ {[%clk 0:00:05.1]} 61.
Ke7 {[%clk 0:00:07.1]} 61... Qg6 {[%clk 0:00:05.8]} 62. Kf8 {[%clk 0:00:08]}
62... f5 {[%clk 0:00:06.2]} 63. Ke7 {[%clk 0:00:08.9]} 63... Qf7+ {[%clk
0:00:06.8]} 64. Kd6 {[%clk 0:00:09.6]} 64... Qd7+ {[%clk 0:00:07.6]} 0-1

[Event "Early-Titled-Tuesday-Blitz-January-30-2024"]
[Site "Chess.com"]
[Date "2024.01.30"]
[Round "5"]
[White "mac0504"]
[Black "Msb2"]
[Result "1-0"]
[WhiteElo "2745"]
[BlackElo "3005"]
[TimeControl "180+1"]
[EndTime "8:59:12 PST"]
[Termination "mac0504 won by checkmate"]

1. c4 {[%clk 0:03:00.9]} 1... e6 {[%clk 0:03:00.3]} 2. Nc3 {[%clk 0:03:01.1]}
2... d5 {[%clk 0:03:01.2]} 3. e3 {[%clk 0:03:01.3]} 3... Nf6 {[%clk 0:03:01.2]}
4. b3 {[%clk 0:02:59.8]} 4... Bd6 {[%clk 0:03:01.3]} 5. Bb2 {[%clk 0:03:00.3]}
5... O-O {[%clk 0:03:01.6]} 6. g4 {[%clk 0:02:56.6]} 6... d4 {[%clk 0:02:50]} 7.
exd4 {[%clk 0:02:53.6]} 7... e5 {[%clk 0:02:50.3]} 8. d5 {[%clk 0:02:20.4]} 8...
Bxg4 {[%clk 0:02:46.2]} 9. Be2 {[%clk 0:02:20.6]} 9... Bf5 {[%clk 0:02:38.4]}
10. Nf3 {[%clk 0:02:20.8]} 10... Na6 {[%clk 0:02:37.5]} 11. Nh4 {[%clk
0:02:11.4]} 11... Bg6 {[%clk 0:02:34.8]} 12. Nxg6 {[%clk 0:02:10.1]} 12... fxg6
{[%clk 0:02:27.2]} 13. a3 {[%clk 0:01:52.2]} 13... Bc5 {[%clk 0:02:18.5]} 14.
Rf1 {[%clk 0:01:29.3]} 14... c6 {[%clk 0:02:12.1]} 15. dxc6 {[%clk 0:01:12]}
15... bxc6 {[%clk 0:02:13]} 16. b4 {[%clk 0:01:10.2]} 16... Bd4 {[%clk
0:02:11.4]} 17. Qa4 {[%clk 0:01:05.9]} 17... Qc8 {[%clk 0:01:49.5]} 18. O-O-O
{[%clk 0:01:04.6]} 18... Kh8 {[%clk 0:01:49.9]} 19. c5 {[%clk 0:01:02.1]} 19...
Nxc5 {[%clk 0:01:42.2]} 20. bxc5 {[%clk 0:01:01.9]} 20... Bxc5 {[%clk
0:01:43.1]} 21. f4 {[%clk 0:00:47.7]} 21... exf4 {[%clk 0:01:31.2]} 22. Rxf4
{[%clk 0:00:48.6]} 22... Rb8 {[%clk 0:01:32]} 23. Rc4 {[%clk 0:00:46.8]} 23...
Qb7 {[%clk 0:01:28.4]} 24. Qc2 {[%clk 0:00:47.2]} 24... Bd6 {[%clk 0:01:26.2]}
25. Ne4 {[%clk 0:00:25]} 25... Be7 {[%clk 0:01:05]} 26. Nc5 {[%clk 0:00:10.5]}
26... Bxc5 {[%clk 0:00:50.1]} 27. Rxc5 {[%clk 0:00:11.4]} 27... Qe7 {[%clk
0:00:50.7]} 28. Re5 {[%clk 0:00:07.9]} 28... Qd6 {[%clk 0:00:50.8]} 29. Bc4
{[%clk 0:00:07.8]} 29... Rb7 {[%clk 0:00:41.1]} 30. Re6 {[%clk 0:00:08]} 30...
Qc5 {[%clk 0:00:25.1]} 31. Rf1 {[%clk 0:00:06.7]} 31... Rxb2 {[%clk 0:00:14.7]}
32. Kxb2 {[%clk 0:00:03.9]} 32... Rb8+ {[%clk 0:00:15.4]} 33. Ka2 {[%clk
0:00:04.2]} 33... Qd4 {[%clk 0:00:14.2]} 34. Bb3 {[%clk 0:00:02.8]} 34... Rd8
{[%clk 0:00:13.2]} 35. Rxc6 {[%clk 0:00:02.8]} 35... h6 {[%clk 0:00:13.7]} 36.
Rc8 {[%clk 0:00:03.3]} 36... Kh7 {[%clk 0:00:14.3]} 37. Rxd8 {[%clk 0:00:03.9]}
37... Qxd8 {[%clk 0:00:15.2]} 38. Qc3 {[%clk 0:00:04.7]} 38... Ne4 {[%clk
0:00:14.6]} 39. Qc2 {[%clk 0:00:05]} 39... Nf6 {[%clk 0:00:13.9]} 40. Rc1 {[%clk
0:00:03]} 40... Qd6 {[%clk 0:00:13.6]} 41. Qb2 {[%clk 0:00:03.5]} 41... Ne4
{[%clk 0:00:12.8]} 42. d4 {[%clk 0:00:03.8]} 42... Nf6 {[%clk 0:00:11.6]} 43. d5
{[%clk 0:00:03.7]} 43... a5 {[%clk 0:00:12.2]} 44. Rc6 {[%clk 0:00:03.4]} 44...
Qd7 {[%clk 0:00:12.8]} 45. Rxf6 {[%clk 0:00:03.2]} 45... gxf6 {[%clk 0:00:13.7]}
46. Qxf6 {[%clk 0:00:03.7]} 46... a4 {[%clk 0:00:14.6]} 47. Bc4 {[%clk
0:00:03.7]} 47... Qc7 {[%clk 0:00:14.9]} 48. Qc6 {[%clk 0:00:01.9]} 48... Qxh2+
{[%clk 0:00:15]} 49. Kb1 {[%clk 0:00:02.5]} 49... Qg1+ {[%clk 0:00:15.5]} 50.
Kc2 {[%clk 0:00:03.1]} 50... Qf2+ {[%clk 0:00:16.4]} 51. Kc3 {[%clk 0:00:03.7]}
51... Qe3+ {[%clk 0:00:15.6]} 52. Kb4 {[%clk 0:00:03.8]} 52... h5 {[%clk
0:00:15.7]} 53. d6 {[%clk 0:00:04.1]} 53... Qd2+ {[%clk 0:00:15.7]} 54. Kb5
{[%clk 0:00:04.1]} 54... h4 {[%clk 0:00:16.6]} 55. d7 {[%clk 0:00:04.4]} 55...
h3 {[%clk 0:00:16.9]} 56. Qc7 {[%clk 0:00:04.2]} 56... Qb2+ {[%clk 0:00:17]} 57.
Kc6 {[%clk 0:00:04.5]} 57... Qf6+ {[%clk 0:00:17]} 58. Qd6 {[%clk 0:00:05]}
58... Qd8 {[%clk 0:00:16.5]} 59. Qc7 {[%clk 0:00:04.3]} 59... Qf6+ {[%clk
0:00:13.4]} 60. Kc5 {[%clk 0:00:04]} 60... Qf2+ {[%clk 0:00:13]} 61. Kb5 {[%clk
0:00:03.8]} 61... Qb2+ {[%clk 0:00:13.3]} 62. Ka6 {[%clk 0:00:03.9]} 62... Qf6+
{[%clk 0:00:13.4]} 63. Qb6 {[%clk 0:00:04.3]} 63... Qxb6+ {[%clk 0:00:04.3]} 64.
Kxb6 {[%clk 0:00:04.5]} 64... h2 {[%clk 0:00:05.2]} 65. Bd5 {[%clk 0:00:05]}
65... h1=Q {[%clk 0:00:06.1]} 66. Bxh1 {[%clk 0:00:05.1]} 66... g5 {[%clk
0:00:07]} 67. d8=Q {[%clk 0:00:05.4]} 67... Kg6 {[%clk 0:00:07.7]} 68. Be4+
{[%clk 0:00:05.4]} 68... Kh5 {[%clk 0:00:08.6]} 69. Qh8+ {[%clk 0:00:05.5]}
69... Kg4 {[%clk 0:00:09.5]} 70. Qf6 {[%clk 0:00:05.7]} 70... Kg3 {[%clk
0:00:09.8]} 71. Qxg5+ {[%clk 0:00:05.9]} 71... Kf2 {[%clk 0:00:10.7]} 72. Qb5
{[%clk 0:00:06.7]} 72... Ke3 {[%clk 0:00:11.6]} 73. Qxa4 {[%clk 0:00:07.6]}
73... Kf4 {[%clk 0:00:12]} 74. Ba8+ {[%clk 0:00:07.8]} 74... Ke3 {[%clk
0:00:12.9]} 75. Qc4 {[%clk 0:00:07.8]} 75... Kf2 {[%clk 0:00:12.6]} 76. Qd3
{[%clk 0:00:08]} 76... Ke1 {[%clk 0:00:12.6]} 77. Qc2 {[%clk 0:00:07.9]} 77...
Kf1 {[%clk 0:00:13]} 78. Qd2 {[%clk 0:00:07.9]} 78... Kg1 {[%clk 0:00:13.5]} 79.
Qg2# {[%clk 0:00:08.6]} 1-0